fUSD/lending_fUSD_20260329
["ID","MTS","AMOUNT","RATE_DAILY","PERIOD"]
[419053661,1774814588422,-500.0,9.613e-05,2]
[419053662,1774814588445,-500.0,9.613e-05,2]
[419053663,1774814588469,-291.81361571,9.613e-05,2]
[419053664,1774814588490,-500.0,9.613e-05,2]
[419053665,1774814588514,-500.0,9.613e-05,2]
[419053666,1774814588536,-372.19726635,9.613e-05,2]
[419053667,1774814588558,-158.81213272,9.613e-05,2]
[419053668,1774814588579,-500.0,9.613e-05,2]
[419053669,1774814588601,-194.70608762,9.613e-05,2]
[419053670,1774814588622,-233.68451527,9.613e-05,2]
[419053671,1774814588645,-500.0,9.613e-05,2]
[419053672,1774814588668,-268.66281508,9.613e-05,2]
[419053673,1774814589180,-500.0,9.613e-05,2]
[419053674,1774814589202,-608.38386471,9.613e-05,2]
[419053675,1774814589223,-248.90831615,9.613e-05,2]
[419053676,1774814589244,-500.0,9.613e-05,2]
[419053677,1774814589270,-500.0,9.613e-05,2]
[419053678,1774814589296,-500.0,9.613e-05,2]
[419053679,1774814589322,-500.0,9.613e-05,2]
[419053680,1774814589348,-500.0,9.613e-05,2]
[419053681,1774814589374,-500.0,9.613e-05,2]
[419053682,1774814589399,-500.0,9.613e-05,2]
[419053683,1774814589424,-500.0,9.613e-05,2]
[419053684,1774814589450,-473.32744655,9.613e-05,2]
[419053685,1774814589476,-500.0,9.613e-05,2]
[419053686,1774814589502,-500.0,9.613e-05,2]
[419053687,1774814589526,-500.0,9.613e-05,2]
[419053688,1774814589549,-1066.30871202,9.613e-05,3]
[419053689,1774814589571,-1066.30871202,9.613e-05,3]
[419053690,1774814589592,-1066.30871202,9.613e-05,3]
[419053691,1774814589612,-1066.30871202,9.613e-05,3]
[419053692,1774814589632,-1066.30871202,9.613e-05,3]
[419053693,1774814589653,-1066.308712,9.613e-05,3]
[419053694,1774814589675,-1181.25,9.613e-05,2]
[419053695,1774814589695,-517.77,9.613e-05,2]
[419053696,1774814589715,-1548.82,9.613e-05,2]
[419053697,1774814589739,-9999.99,9.613e-05,2]
[419053698,1774814589760,-499.99,9.613e-05,2]
[419053699,1774814589781,-5081.68,9.613e-05,2]
[419053700,1774814589802,-9999.99,9.613e-05,2]
[419053701,1774814589824,-1901.65,9.613e-05,2]
[419053702,1774814589846,-4999.99,9.613e-05,2]
[419053703,1774814589868,-23348.11,9.613e-05,2]
[419053704,1774814589889,-999.99,9.613e-05,2]
[419053705,1774814589911,-150.99,9.613e-05,2]
[419053706,1774814589930,-14101.42,9.613e-05,2]
[419053707,1774814589952,-9999.99,9.613e-05,2]
[419053708,1774814589972,-150.99,9.613e-05,2]
[419053709,1774814589993,-1619.68,9.613e-05,2]
[419053710,1774814590015,-7603.56,9.613e-05,2]
[419053711,1774814590036,-299.99,9.613e-05,2]
[419053712,1774814590056,-973.92,9.613e-05,2]
[419053713,1774814590078,-204.07600257,9.613e-05,3]
[419053714,1774814590099,-1080.18049598,9.613e-05,3]
[419053715,1774814590121,-6738.132,9.613e-05,2]
[419053716,1774814590143,-430.511,9.613e-05,2]
[419053717,1774814590167,-155271.89887291,9.614e-05,2]
[419053718,1774814858737,8713.36503267,8e-05,2]
[419053719,1774814899944,1000.0,9.006e-05,2]
[419053720,1774814900681,610.0,9.124e-05,2]
[419053721,1774814900953,1500.0,9.489e-05,2]
[419053722,1774814953358,5000.01,8.857e-05,2]
[419053723,1774814953381,1734.31,8.857e-05,2]
[419053724,1774814997889,1852.42,8.842e-05,2]
[419053725,1774815006156,57553.13008767,9.5e-05,3]
[419053736,1774815031558,-626.10704283,9.512e-05,2]
[419053737,1774815031570,-573.89295717,9.512e-05,2]
[419053738,1774815031579,-250.0,9.512e-05,2]
[419053739,1774815031589,-282.27861032,9.513e-05,2]
[419053740,1774815031600,-500.0,9.513e-05,2]
[419053741,1774815031609,-500.0,9.513e-05,2]
[419053742,1774815031620,-500.0,9.513e-05,2]
[419053743,1774815031631,-604.269531,9.513e-05,2]
[419053744,1774815031641,-500.0,9.513e-05,2]
[419053745,1774815031650,-500.0,9.513e-05,2]
[419053746,1774815031660,-160.53808645,9.513e-05,2]
[419053747,1774815031669,-608.14749407,9.513e-05,2]
[419053748,1774815031680,-253.0,9.513e-05,2]
[419053749,1774815031690,-2500.0,9.514e-05,2]
[419053750,1774815031699,-320413.00175589,9.514e-05,2]
[419053751,1774815031711,-49306.22672703,9.514e-05,2]
[419053752,1774815031723,-94811.24773096,9.514e-05,2]
[419053753,1774815031734,-1254.41808677,9.514e-05,2]
[419053754,1774815031752,-300.0,9.514e-05,2]
[419053755,1774815031763,-3329.86872731,9.514e-05,2]
[419053758,1774815031812,-1310.79001342,9.514e-05,2]
[419053760,1774815031823,-304.6618314,9.514e-05,2]
[419053781,1774815037663,-329.37530742,9.514e-05,2]
[419053782,1774815037674,-2989.61049997,9.514e-05,2]
[419053783,1774815037769,-30311.55516234,9.514e-05,2]
[419053784,1774815037823,-308.5174995,9.514e-05,2]
[419053785,1774815037930,-1827.21868921,9.514e-05,2]
[419053786,1774815037941,-943.95867498,9.514e-05,2]
[419053787,1774815037953,-903.93718342,9.514e-05,2]
[419053788,1774815037965,-1991355.61211038,9.514e-05,2]
[419053789,1774815037974,-10000.0,9.514e-05,2]
[419053790,1774815037984,-5000.0,9.553e-05,2]
[419053791,1774815037993,-5000.0,9.582e-05,2]
[419053792,1774815038003,-4130.80765112,9.582e-05,2]
[419053793,1774815038012,-500.0,9.593e-05,2]
[419053794,1774815038022,-500.0,9.593e-05,2]
[419053795,1774815038031,-500.44548801,9.593e-05,2]
[419053796,1774815038040,-500.0,9.593e-05,2]
[419053797,1774815038050,-500.0,9.593e-05,2]
[419053798,1774815038059,-500.0,9.593e-05,2]
[419053799,1774815038068,-500.0,9.593e-05,2]
[419053800,1774815038078,-500.0,9.593e-05,2]
[419053801,1774815038088,-500.0,9.593e-05,2]
[419053802,1774815038098,-500.0,9.593e-05,2]
[419053803,1774815038107,-500.0,9.593e-05,2]
[419053804,1774815038117,-500.0,9.593e-05,2]
[419053805,1774815038126,-500.0,9.593e-05,2]
[419053806,1774815038136,-500.0,9.593e-05,2]
[419053807,1774815038146,-500.22919119,9.593e-05,2]
[419053808,1774815038155,-169.92418884,9.593e-05,2]
[419053809,1774815038165,-500.0,9.593e-05,2]
[419053810,1774815038174,-153.27466148,9.593e-05,2]
[419053811,1774815038184,-1300.0,9.6e-05,3]
[419053812,1774815038193,-200.0,9.6e-05,3]
[419053813,1774815038203,-4566.50840311,9.613e-05,2]
[419053814,1774815038213,-1000.0,9.614e-05,2]
[419053815,1774815038222,-1500000.0,9.614e-05,2]
[419053816,1774815038231,-158.0,9.614e-05,3]
[419053817,1774815038241,-865.43,9.658e-05,2]
[419053818,1774815038250,-224.32485354,9.658e-05,2]
[419053819,1774815038260,-3795.23329007,9.658e-05,2]
[419053820,1774815038269,-2600.0,9.7e-05,3]
[419053821,1774815038278,-400.0,9.7e-05,3]
[419053822,1774815038288,-282.0,9.739e-05,2]
[419053823,1774815038298,-258.0,9.759e-05,2]
[419053824,1774815038307,-174.0,9.778e-05,2]
[419053825,1774815038316,-421.0,9.798e-05,2]
[419053826,1774815038326,-1000.0,9.799e-05,2]
[419053827,1774815038336,-1000.0,9.799e-05,2]
[419053828,1774815038345,-3900.0,9.8e-05,3]
[419053829,1774815038355,-600.0,9.8e-05,3]
[419053830,1774815038364,-1854.0,9.803e-05,2]
[419053831,1774815038374,-26971.09155416,9.806e-05,2]
[419053832,1774815038384,-220.97,9.82e-05,2]
[419053833,1774815038393,-1282.0,9.822e-05,2]
[419053834,1774815038402,-526.68,9.827e-05,2]
[419053835,1774815038411,-500.0,9.842e-05,2]
[419053836,1774815038420,-1251.0,9.842e-05,2]
[419053837,1774815038431,-344.0,9.861e-05,2]
[419053838,1774815038442,-171.50157608,9.873e-05,2]
[419053839,1774815038453,-500.0,9.873e-05,2]
[419053840,1774815038463,-500.0,9.873e-05,2]
[419053841,1774815038473,-500.0,9.873e-05,2]
[419053842,1774815038483,-500.0,9.873e-05,2]
[419053843,1774815038492,-1036.0,9.881e-05,2]
[419053844,1774815038502,-9999.99,9.9e-05,2]
[419053845,1774815038512,-9999.99,9.9e-05,2]
[419053846,1774815038522,-1842.25,9.9e-05,2]
[419053847,1774815038532,-1159.87,9.9e-05,2]
[419053848,1774815038541,-9999.99,9.9e-05,2]
[419053849,1774815038551,-8455.71,9.9e-05,2]
[419053850,1774815038560,-8618.44,9.9e-05,2]
[419053851,1774815038570,-5686.33,9.9e-05,2]
[419053852,1774815038580,-20710.18,9.9e-05,2]
[419053853,1774815038590,-9999.99,9.9e-05,2]
[419053854,1774815038600,-94739.83,9.9e-05,2]
[419053855,1774815038610,-299.99,9.9e-05,2]
[419053856,1774815038620,-999.99,9.9e-05,2]
[419053857,1774815038630,-150.99,9.9e-05,2]
[419053858,1774815038639,-2267.62,9.9e-05,2]
[419053859,1774815038649,-150.99,9.9e-05,2]
[419053860,1774815038658,-354.69,9.9e-05,2]
[419053861,1774815038667,-1947.0,9.9e-05,2]
[419053862,1774815038677,-5300.0,9.9e-05,3]
[419053863,1774815038686,-1351.0,9.9e-05,2]
[419053864,1774815038696,-800.0,9.9e-05,3]
[419053865,1774815038705,-409.0,9.92e-05,2]
[419053866,1774815038714,-1383.0,9.94e-05,2]
[419053867,1774815038723,-1146.0,9.959e-05,2]
[419053868,1774815038732,-1125.0,9.979e-05,2]
[419053869,1774815038741,-1211.0,9.998e-05,2]
[419053870,1774815038750,-163.75680664,0.0001,2]
[419053871,1774815038759,-203.79787509,0.0001,2]
[419053872,1774815038769,-290.45345749,0.0001,2]
[419053873,1774815038779,-500.0,0.0001,2]
[419053874,1774815038788,-500.0,0.0001,2]
[419053875,1774815038798,-500.0,0.0001,2]
[419053876,1774815038808,-500.0,0.0001,2]
[419053877,1774815038818,-500.0,0.0001,2]
[419053878,1774815038827,-500.0,0.0001,2]
[419053879,1774815038837,-500.0,0.0001,2]
[419053880,1774815038846,-200.0,0.0001,2]
[419053881,1774815038856,-500.0,0.0001,2]
[419053882,1774815038865,-500.0,0.0001,2]
[419053883,1774815038875,-500.0,0.0001,2]
[419053884,1774815038885,-500.0,0.0001,2]
[419053885,1774815038894,-151.0,0.0001,2]
[419053886,1774815038905,-151.0,0.0001,2]
[419053887,1774815038914,-151.0,0.0001,2]
[419053888,1774815038923,-500.0,0.0001,2]
[419053889,1774815038933,-151.0,0.0001,2]
[419053890,1774815038943,-500.0,0.0001,2]
[419053891,1774815038952,-151.0,0.0001,2]
[419053892,1774815038961,-420.13383663,0.0001,2]
[419053893,1774815038970,-500.0,0.0001,2]
[419053894,1774815038980,-151.0,0.0001,2]
[419053895,1774815038990,-500.0,0.0001,2]
[419053896,1774815039000,-151.0,0.0001,2]
[419053897,1774815039387,-500.0,0.0001,2]
[419053898,1774815039397,-151.0,0.0001,2]
[419053899,1774815039407,-151.0,0.0001,2]
[419053900,1774815039416,-500.0,0.0001,2]
[419053901,1774815039425,-151.0,0.0001,2]
[419053902,1774815039434,-151.0,0.0001,2]
[419053903,1774815039444,-151.0,0.0001,2]
[419053904,1774815039454,-500.0,0.0001,2]
[419053905,1774815039464,-151.0,0.0001,2]
[419053906,1774815039473,-151.0,0.0001,2]
[419053907,1774815039483,-500.0,0.0001,2]
[419053908,1774815039492,-151.0,0.0001,2]
[419053909,1774815039502,-151.0,0.0001,2]
[419053910,1774815039512,-151.0,0.0001,2]
[419053911,1774815039521,-500.0,0.0001,2]
[419053912,1774815039531,-6600.0,0.0001,3]
[419053913,1774815039540,-151.0,0.0001,2]
[419053914,1774815039550,-500.0,0.0001,2]
[419053916,1774815039560,-151.0,0.0001,2]
[419053917,1774815039570,-500.0,0.0001,2]
[419053918,1774815039581,-151.0,0.0001,2]
[419053919,1774815039590,-151.0,0.0001,2]
[419053920,1774815039599,-151.0,0.0001,2]
[419053921,1774815039609,-151.0,0.0001,2]
[419053922,1774815039619,-151.0,0.0001,2]
[419053923,1774815039628,-151.0,0.0001,2]
[419053924,1774815039638,-151.0,0.0001,2]
[419053925,1774815039648,-151.0,0.0001,2]
[419053926,1774815039658,-151.0,0.0001,2]
[419053927,1774815039668,-151.0,0.0001,2]
[419053928,1774815039678,-151.0,0.0001,2]
[419053929,1774815039687,-151.0,0.0001,2]
[419053930,1774815039697,-1386.78395259,0.0001,2]
[419053931,1774815039706,-151.0,0.0001,2]
[419053932,1774815039715,-151.0,0.0001,2]
[419053933,1774815039724,-1000.0,0.0001,3]
[419053934,1774815039734,-181.95612017,0.0001,2]
[419053935,1774815039743,-181.95612017,0.0001,2]
[419053936,1774815039753,-2000.0,0.00010005,2]
[419053937,1774815039763,-1210.0,0.00010018,2]
[419053938,1774815039773,-1866.0,0.00010037,2]
[419053939,1774815039783,-329.0,0.00010057,2]
[419053940,1774815039792,-261.48805615,0.000101,2]
[419053941,1774815039802,-500.0,0.00010116,2]
[419053942,1774815039812,-1000.0,0.00010141,2]
[419053943,1774815039821,-1000.0,0.00010141,2]
[419053945,1774815039830,-1000.0,0.00010141,2]
[419053946,1774815039839,-1000.0,0.00010141,2]
[419053947,1774815039848,-1000.0,0.00010141,2]
[419053948,1774815039858,-1000.0,0.00010141,2]
[419053949,1774815039867,-1000.0,0.00010141,2]
[419053950,1774815039877,-1000.0,0.00010141,2]
[419053951,1774815039885,-1000.0,0.00010141,2]
[419053952,1774815039895,-1000.0,0.00010141,2]
[419053953,1774815039905,-1000.0,0.00010141,2]
[419053954,1774815039914,-1000.0,0.00010141,2]
[419053955,1774815039924,-5534.0,0.000102,3]
[419053956,1774815039934,-1000.0,0.000102,2]
[419053957,1774815039943,-220.97,0.00010311,2]
[419053958,1774815039953,-500.0,0.0001039,2]
[419053959,1774815039962,-1131.94084691,0.00010421,2]
[419053960,1774815039971,-592.36520232,0.00010421,2]
[419053961,1774815039980,-1000.0,0.00010421,2]
[419053962,1774815039989,-1045.4146401,0.00010421,2]
[419053963,1774815039998,-1300.0,0.00010442,2]
[419053964,1774815040008,-1680.0,0.00010463,2]
[419053965,1774815040018,-250.0,0.00010463,2]
[419053966,1774815040028,-5000.0,0.00010464,2]
[419053967,1774815040039,-193.0,0.00010464,2]
[419053968,1774815040049,-5000.0,0.00010465,2]
[419053969,1774815040059,-5534.0,0.000105,5]
[419053970,1774815040068,-200.0,0.00010548,2]
[419053971,1774815040078,-1438.09495884,0.00010548,2]
[419053972,1774815040088,-151.0,0.00010548,2]
[419053973,1774815040098,-150.0,0.000106,2]
[419053974,1774815040108,-2750.6,0.000106,2]
[419053975,1774815040118,-2750.6,0.000106,2]
[419053976,1774815040128,-2750.6,0.000106,2]
[419053977,1774815040137,-2750.6,0.000106,2]
[419053978,1774815040147,-2750.6,0.000106,2]
[419053979,1774815040157,-2750.6,0.000106,2]
[419053980,1774815040166,-2750.6,0.000106,2]
[419053981,1774815040176,-2750.6,0.000106,2]
[419053982,1774815040186,-2750.6,0.000106,2]
[419053983,1774815040195,-812.79,0.00010618,2]
[419053984,1774815040205,-500.0,0.00010664,2]
[419053985,1774815040215,-1000.0,0.00010688,2]
[419053986,1774815040224,-500.0,0.00010688,2]
[419053987,1774815040234,-697.01734564,0.00010688,2]
[419053988,1774815040244,-1003.28384066,0.00010688,2]
[419053989,1774815040254,-700.06015101,0.00010688,2]
[419053990,1774815040263,-335.72179077,0.00010688,2]
[419053991,1774815040272,-501.58195524,0.00010688,2]
[419053992,1774815040282,-1500.0,0.00010688,2]
[419053993,1774815040293,-1500.0,0.00010688,2]
[419053994,1774815040303,-1500.0,0.00010688,2]
[419053995,1774815040313,-500.0,0.00010688,2]
[419053996,1774815040322,-1500.0,0.00010688,2]
[419053997,1774815040331,-270.07601474,0.000107,2]
[419053998,1774815040341,-220.97,0.00010802,2]
[419053999,1774815040350,-9606.51051487,0.000109,2]
[419054000,1774815040360,-9606.5105148,0.000109,2]
[419054001,1774815040369,-17001.16,0.00010907,2]
[419054002,1774815040379,-500.0,0.00010959,2]
[419054003,1774815040388,-150.0,0.00010959,2]
[419054004,1774815040398,-166.66,0.00010959,2]
[419054005,1774815040409,-168.31887754,0.00010959,2]
[419054006,1774815040418,-3282.16832312,0.00011,2]
[419054007,1774815040428,-1758.88630873,0.00011,2]
[419054008,1774815040438,-189.38,0.00011025,2]
[419054009,1774815040448,-166.66,0.00011068,2]
[419054010,1774815040457,-200.0,0.00011096,2]
[419054011,1774815040467,-1491.30447232,0.00011096,2]
[419054012,1774815040476,-267.40193029,0.00011096,2]
[419054013,1774815040486,-27906.65487179,0.00011099,2]
[419054014,1774815040495,-27906.65487176,0.00011099,2]
[419054015,1774815040505,-27906.65487176,0.00011099,2]
[419054016,1774815040514,-30342.24512377,0.00011099,2]
[419054017,1774815040524,-30342.24512371,0.00011099,2]
[419054018,1774815040534,-30342.24512371,0.00011099,2]
[419054019,1774815040543,-30342.24512371,0.00011099,2]
[419054020,1774815040553,-2000.0,0.00011116,2]
[419054021,1774815040562,-166.66,0.00011178,2]
[419054022,1774815040572,-2000.0,0.00011236,2]
[419054023,1774815040582,-500.0,0.00011236,2]
[419054024,1774815040591,-2000.0,0.00011236,2]
[419054025,1774815040601,-2000.0,0.00011236,2]
[419054026,1774815040610,-9606.5105148,0.00011267,2]
[419054027,1774815040620,-166.66,0.00011288,2]
[419054028,1774815040629,-220.97,0.00011293,2]
[419054029,1774815040639,-27906.65487176,0.00011396,2]
[419054030,1774815040649,-166.66,0.00011397,2]
[419054031,1774815040658,-166.66,0.00011507,2]
[419054032,1774815040668,-2351.0,0.00011509,2]
[419054033,1774815040677,-30342.24512371,0.00011513,2]
[419054034,1774815040687,-200.0,0.00011644,2]
[419054035,1774815040696,-1546.48273779,0.00011644,2]
[419054036,1774815040707,-1380.105464,0.00011782,2]
[419054037,1774815040717,-394.315848,0.00011782,2]
[419054038,1774815040728,-4656.965032,0.00011782,2]
[419054039,1774815040736,-220.97,0.00011784,2]
[419054040,1774815040747,-2001.46003451,0.00011784,2]
[419054041,1774815040756,-2500.0,0.00011784,2]
[419054042,1774815040766,-2500.0,0.00011784,2]
[419054043,1774815040775,-196.892,0.00012,2]
[419054044,1774815040785,-500.0,0.00012,2]
[419054045,1774815040795,-15686.09150363,0.00012,7]
[419054046,1774815040804,-200.0,0.00012,2]
[419054047,1774815040814,-27906.65487176,0.00012023,2]
[419054049,1774815040825,-30342.24512371,0.00012029,2]
[419054050,1774815040837,-200.0,0.00012192,2]
[419054051,1774815040847,-1603.70259909,0.00012192,2]
[419054052,1774815040856,-9606.5105148,0.00012194,2]
[419054053,1774815040867,-2000.0,0.00012228,2]
[419054055,1774815040877,-220.97,0.00012275,2]
[419054056,1774815040886,-585.851088,0.00012293,2]
[419054058,1774815040896,-3000.0,0.00012332,2]
[419054059,1774815040905,-1200.7886617,0.00012332,2]
[419054060,1774815040915,-2957.368854,0.00012397,2]
[419054061,1774815040924,-185.844672,0.00012397,2]
[419054062,1774815040933,-6734.32,0.000124,2]
[419054063,1774815040942,-30342.24512371,0.00012544,2]
[419054064,1774815040952,-250.0,0.0001257,2]
[419054065,1774815040961,-27906.65487176,0.0001265,2]
[419054066,1774815040970,-3292.0,0.0001266,2]
[419054067,1774815040979,-224.32485354,0.00012729,2]
[419054068,1774815040988,-3795.23329005,0.00012729,2]
[419054069,1774815040998,-151.0,0.00012739,2]
[419054070,1774815041007,-3040.559111,0.00012739,2]
[419054071,1774815041016,-200.0,0.0001274,2]
[419054072,1774815041026,-1663.03959526,0.0001274,2]
[419054073,1774815041036,-220.97,0.00012766,2]
[419054074,1774815041046,-2949.88014419,0.0001288,2]
[419054075,1774815041055,-243.244728,0.00012881,2]
[419054076,1774815041065,-166.995687,0.00012881,2]
[419054077,1774815041074,-1000.0,0.00012899,2]
[419054078,1774815041083,-58217.26008247,0.00012999,2]
[419054079,1774815041093,-250.0,0.00013,2]
[419054080,1774815041103,-30342.24512371,0.00013059,2]
[419054081,1774815041113,-9606.5105148,0.0001312,2]
[419054082,1774815041122,-220.97,0.00013257,2]
[419054083,1774815041132,-27906.65487176,0.00013277,2]
[419054084,1774815041143,-200.0,0.00013288,2]
[419054085,1774815041152,-1724.57206028,0.00013288,2]
[419054086,1774815041162,-2000.0,0.00013339,2]
[419054087,1774815041172,-258.4431,0.000134,2]
[419054088,1774815041182,-189.38,0.00013491,2]
[419054089,1774815041192,-1000.0,0.000135,2]
[419054090,1774815041203,-30342.24512371,0.00013574,2]
[419054091,1774815041213,-686.0,0.000136,7]
[419054092,1774815041222,-500.0,0.00013698,2]
[419054093,1774815041232,-500.0,0.00013698,2]
[419054094,1774815041242,-500.0,0.00013698,2]
[419054095,1774815041252,-500.0,0.00013698,2]
[419054096,1774815041261,-500.0,0.00013698,2]
[419054097,1774815041271,-500.0,0.00013698,2]
[419054098,1774815041280,-500.0,0.00013698,2]
[419054099,1774815041290,-566.97722897,0.00013698,2]
[419054100,1774815041299,-151.0,0.00013698,2]
[419054101,1774815041310,-151.0,0.00013698,2]
[419054102,1774815041319,-151.0,0.00013698,2]
[419054103,1774815041329,-500.0,0.00013698,2]
[419054104,1774815041339,-500.0,0.00013698,2]
[419054105,1774815041348,-500.0,0.00013698,2]
[419054106,1774815041358,-500.0,0.00013698,2]
[419054107,1774815041368,-500.0,0.00013698,2]
[419054108,1774815041378,-500.0,0.00013698,2]
[419054109,1774815041387,-500.0,0.00013698,2]
[419054110,1774815041397,-500.0,0.00013698,2]
[419054111,1774815041407,-500.0,0.00013698,2]
[419054112,1774815041416,-500.0,0.00013698,2]
[419054113,1774815041426,-500.0,0.00013698,2]
[419054114,1774815041435,-500.0,0.00013698,2]
[419054115,1774815041445,-500.0,0.00013698,2]
[419054116,1774815041454,-500.0,0.00013698,2]
[419054117,1774815041468,-500.0,0.00013698,2]
[419054118,1774815041477,-500.0,0.00013698,2]
[419054119,1774815041486,-500.0,0.00013698,2]
[419054120,1774815041496,-500.0,0.00013698,2]
[419054121,1774815041507,-500.0,0.00013698,2]
[419054122,1774815041517,-500.0,0.00013698,2]
[419054123,1774815041526,-500.0,0.00013698,2]
[419054124,1774815041536,-500.0,0.00013698,2]
[419054125,1774815041546,-500.0,0.00013698,2]
[419054126,1774815041555,-500.0,0.00013698,2]
[419054127,1774815041564,-212.34445911,0.00013698,2]
[419054128,1774815041574,-500.0,0.00013698,2]
[419054129,1774815041583,-500.0,0.00013698,2]
[419054130,1774815041592,-500.0,0.00013698,2]
[419054131,1774815041603,-500.0,0.00013698,2]
[419054132,1774815041613,-315.34588043,0.00013698,2]
[419054133,1774815041622,-500.0,0.00013698,2]
[419054134,1774815041632,-500.0,0.00013698,2]
[419054135,1774815041642,-500.0,0.00013698,2]
[419054136,1774815041651,-500.0,0.00013698,2]
[419054137,1774815041660,-500.0,0.00013698,2]
[419054138,1774815041670,-500.0,0.00013698,2]
[419054139,1774815041681,-500.0,0.00013698,2]
[419054140,1774815041691,-500.0,0.00013698,2]
[419054141,1774815041703,-500.0,0.00013698,2]
[419054142,1774815041712,-500.0,0.00013698,2]
[419054143,1774815041722,-500.0,0.00013698,2]
[419054144,1774815041732,-500.0,0.00013698,2]
[419054145,1774815041740,-500.0,0.00013698,2]
[419054146,1774815041750,-500.0,0.00013698,2]
[419054147,1774815041759,-500.0,0.00013698,2]
[419054148,1774815041768,-500.0,0.00013698,2]
[419054149,1774815041778,-500.0,0.00013698,2]
[419054150,1774815041787,-415.88455514,0.00013698,2]
[419054151,1774815041797,-500.0,0.00013698,2]
[419054152,1774815041806,-500.0,0.00013698,2]
[419054153,1774815041816,-500.0,0.00013698,2]
[419054154,1774815041826,-500.0,0.00013698,2]
[419054155,1774815041835,-500.0,0.00013698,2]
[419054156,1774815041844,-500.0,0.00013698,2]
[419054157,1774815041854,-500.0,0.00013698,2]
[419054158,1774815041863,-500.0,0.00013698,2]
[419054159,1774815041873,-500.0,0.00013698,2]
[419054160,1774815041883,-500.0,0.00013698,2]
[419054161,1774815041893,-539.86096787,0.00013698,2]
[419054162,1774815041902,-500.0,0.00013698,2]
[419054163,1774815041911,-500.0,0.00013698,2]
[419054164,1774815041921,-500.0,0.00013698,2]
[419054165,1774815041930,-500.0,0.00013698,2]
[419054166,1774815041940,-500.0,0.00013698,2]
[419054167,1774815041950,-500.0,0.00013698,2]
[419054168,1774815041960,-500.0,0.00013698,2]
[419054169,1774815041969,-500.0,0.00013698,2]
[419054170,1774815041979,-500.0,0.00013698,2]
[419054171,1774815041988,-500.0,0.00013698,2]
[419054172,1774815041998,-500.0,0.00013698,2]
[419054173,1774815042007,-500.0,0.00013698,2]
[419054174,1774815042016,-500.0,0.00013698,2]
[419054175,1774815042026,-500.0,0.00013698,2]
[419054176,1774815042035,-500.0,0.00013698,2]
[419054177,1774815042045,-500.0,0.00013698,2]
[419054178,1774815042054,-500.0,0.00013698,2]
[419054179,1774815042064,-500.0,0.00013698,2]
[419054180,1774815042073,-500.0,0.00013698,2]
[419054181,1774815042082,-500.0,0.00013698,2]
[419054182,1774815042092,-316.88,0.00013698,2]
[419054183,1774815042101,-500.0,0.00013698,2]
[419054184,1774815042112,-500.0,0.00013698,2]
[419054185,1774815042122,-500.0,0.00013698,2]
[419054186,1774815042131,-500.0,0.00013698,2]
[419054187,1774815042141,-500.0,0.00013698,2]
[419054188,1774815042150,-500.0,0.00013698,2]
[419054189,1774815042160,-500.0,0.00013698,2]
[419054190,1774815042170,-500.0,0.00013698,2]
[419054191,1774815042179,-500.0,0.00013698,2]
[419054192,1774815042189,-500.0,0.00013698,2]
[419054193,1774815042199,-500.0,0.00013698,2]
[419054194,1774815042208,-500.0,0.00013698,2]
[419054195,1774815042217,-500.0,0.00013698,2]
[419054196,1774815042227,-332.17600438,0.00013698,2]
[419054197,1774815042236,-500.0,0.00013698,2]
[419054198,1774815042246,-500.0,0.00013698,2]